[Event "FIDE World Rapid-ch Open 2018"]
[White "Gabrielian, Artur"]
[Black "Kazhgaleyev, Murtas"]
[Site "St. Petersburg"]
[Round "13.66"]
[Annotator "ChessBase"]
[Result "0-1"]
[Date "2018.12.28"]
[WhiteElo "2499"]
[BlackElo "2587"]
[PlyCount "46"]
[TimeControl "900+10"]

1. e4 {[%emt 0:0:0]} e5 {[%emt 0:0:0]} 2. Nf3 {[%emt 0:0:0]} d6 {[%emt 0:0:0]} 3. d4 {[%emt 0:0:0]} exd4 {[%emt 0:0:0]} 4. Nxd4 {[%emt 0:0:0]} Nf6 {[%emt 0:0:0]} 5. Nc3 {[%emt 0:0:0]} Be7 {[%emt 0:0:0]} 6. Bf4 {[%emt 0:0:7]
} 0-0 {[%emt 0:0:3]} 7. Be2 {[%emt 0:0:2]} Re8 {[%emt 0:0:0]} 8. Qd2 {[%emt 0:0:3]} Bf8 {[%emt 0:0:7]} 9. f3 {[%emt 0:0:12]} a6 {[%emt 0:2:8]
} 10. 0-0-0 {[%emt 0:0:12]} b5 {[%emt 0:1:14]} 11. g4 {[%emt 0:0:0]} b4 {[%emt 0:2:16]} 12. Nd5 {[%emt 0:0:30]} Nxd5 {[%emt 0:0:18]} 13. exd5 {[%emt 0:0:1]} Bb7 {[%emt 0:0:3]} 14. Bc4 {[%emt 0:1:3]} a5 {[%emt 0:0:36]
} 15. Bb5 {[%emt 0:2:22]} Nd7 {[%emt 0:0:18]} 16. Nf5 {[%emt 0:0:0]} Ba6 {[%emt 0:0:51]} 17. Bc6 {[%emt 0:0:22]} Re2 {[%emt 0:0:51]} 18. Qd4 {[%emt 0:0:8]} Rb8 {[%emt 0:0:7]} 19. Rhe1 {[%emt 0:0:40]} Ne5 {[%emt 0:1:8]
} 20. Bxe5 {[%emt 0:1:21]} dxe5 {[%emt 0:0:3]} 21. Qa7 {[%emt 0:0:23]
} Qg5+ {[%emt 0:0:39]} 22. Ne3 {[%emt 0:4:5]} Rb6 {[%emt 0:0:0]} 23. Qxa6 {[%emt 0:1:14]} Qxe3+ {[%emt 0:0:5]} 0-1

[Event "FIDE World Rapid-ch Open 2018"]
[White "Fakhrutdinov, Timur"]
[Black "Yilmaz, Mustafa"]
[Site "St. Petersburg"]
[Round "13.67"]
[Annotator "ChessBase"]
[Result "0-1"]
[Date "2018.12.28"]
[WhiteElo "2481"]
[BlackElo "2636"]
[PlyCount "114"]
[TimeControl "900+10"]

1. e4 {[%emt 0:0:0]} c5 {[%emt 0:0:0]} 2. Nf3 {[%emt 0:0:0]} d6 {[%emt 0:0:0]} 3. d4 {[%emt 0:0:0]} cxd4 {[%emt 0:0:0]} 4. Nxd4 {[%emt 0:0:0]} Nf6 {[%emt 0:0:0]} 5. Nc3 {[%emt 0:0:0]} a6 {[%emt 0:0:0]} 6. Be3 {[%emt 0:0:1]
} e5 {[%emt 0:0:0]} 7. Nf3 {[%emt 0:0:4]} Qc7 {[%emt 0:0:0]
} 8. a4 {[%emt 0:0:6]} Be7 {[%emt 0:0:2]} 9. a5 {[%emt 0:0:18]} 0-0 {[%emt 0:4:33]
} 10. Be2 {[%emt 0:0:2]} Be6 {[%emt 0:1:7]} 11. 0-0 {[%emt 0:0:0]} h6 {[%emt 0:0:1]} 12. Nd5 {[%emt 0:2:17]} Nxd5 {[%emt 0:0:2]} 13. exd5 {[%emt 0:0:1]} Bg4 {[%emt 0:0:2]} 14. Qd2 {[%emt 0:1:58]} f5 {[%emt 0:2:48]
} 15. Bb6 {[%emt 0:3:28]} Qc8 {[%emt 0:0:23]} 16. Ra4 {[%emt 0:0:0]} Nd7 {[%emt 0:0:1]} 17. Rc4 {[%emt 0:0:32]} Qe8 {[%emt 0:0:1]} 18. Bc7 {[%emt 0:1:4]} Rc8 {[%emt 0:1:33]} 19. Qb4 {[%emt 0:1:21]} Bxf3 {[%emt 0:5:7]
} 20. Bxf3 {[%emt 0:0:24]} e4 {[%emt 0:0:1]} 21. Be2 {[%emt 0:0:0]} Ne5 {[%emt 0:0:1]} 22. Rc3 {[%emt 0:0:38]} Qd7 {[%emt 0:0:1]} 23. Bb6 {[%emt 0:2:28]} Bf6 {[%emt 0:0:6]} 24. Bd4 {[%emt 0:0:36]} Qe7 {[%emt 0:0:1]
} 25. Re1 {[%emt 0:0:32]} Rce8 {[%emt 0:0:22]} 26. Qb6 {[%emt 0:0:35]
} Rc8 {[%emt 0:0:46]} 27. Bf1 {[%emt 0:0:7]} Ng4 {[%emt 0:0:0]} 28. h3 {[%emt 0:0:16]} Bxd4 {[%emt 0:0:7]} 29. Qxd4 {[%emt 0:0:2]} Ne5 {[%emt 0:0:5]} 30. Ree3 {[%emt 0:0:6]} Rce8 {[%emt 0:0:24]} 31. Qb6 {[%emt 0:0:10]
} Rf7 {[%emt 0:0:13]} 32. b4 {[%emt 0:0:24]} Qf6 {[%emt 0:0:0]} 33. Rc7 {[%emt 0:0:6]} Rxc7 {[%emt 0:0:2]} 34. Qxc7 {[%emt 0:0:2]} Re7 {[%emt 0:0:1]} 35. Qc8+ {[%emt 0:0:11]} Kh7 {[%emt 0:0:3]} 36. Rc3 {[%emt 0:0:22]
} Qf7 {[%emt 0:0:14]} 37. Qd8 {[%emt 0:0:11]} Rd7 {[%emt 0:0:0]} 38. Qb6 {[%emt 0:0:8]} Qxd5 {[%emt 0:0:20]} 39. b5 {[%emt 0:0:11]} axb5 {[%emt 0:0:6]} 40. Qxb5 {[%emt 0:0:5]} Qd4 {[%emt 0:0:13]} 41. Rb3 {[%emt 0:0:15]
} Rc7 {[%emt 0:0:32]} 42. Qb6 {[%emt 0:0:4]} Qc5 {[%emt 0:0:0]} 43. Rb5 {[%emt 0:0:16]} Qxb6 {[%emt 0:0:15]} 44. Rxb6 {[%emt 0:0:8]} Nc6 {[%emt 0:0:5]} 45. Rb5 {[%emt 0:0:3]} Kg6 {[%emt 0:0:4]} 46. g4 {[%emt 0:0:5]
} fxg4 {[%emt 0:0:3]} 47. hxg4 {[%emt 0:0:2]} Nd4 {[%emt 0:0:0]} 48. Rd5 {[%emt 0:0:9]} Nf3+ {[%emt 0:0:9]} 49. Kg2 {[%emt 0:0:6]} Rxc2 {[%emt 0:0:22]} 50. Rxd6+ {[%emt 0:0:4]} Kg5 {[%emt 0:0:1]} 51. Rd7 {[%emt 0:0:32]
} Ne1+ {[%emt 0:0:12]} 52. Kg1 {[%emt 0:0:9]} e3 {[%emt 0:0:0]} 53. Rf7 {[%emt 0:0:26]} Kg6 {[%emt 0:0:21]} 54. Rf4 {[%emt 0:0:9]} e2 {[%emt 0:0:1]} 55. Bxe2 {[%emt 0:0:11]} Rxe2 {[%emt 0:0:2]} 56. Rb4 {[%emt 0:0:9]
} Ra2 {[%emt 0:0:4]} 57. Rb6+ {[%emt 0:0:9]} Kh7 {[%emt 0:0:0]} 0-1

[Event "FIDE World Rapid-ch Open 2018"]
[White "Mikhalevski, Victor"]
[Black "Hakobyan, Aram"]
[Site "St. Petersburg"]
[Round "13.68"]
[Annotator "ChessBase"]
[Result "0-1"]
[Date "2018.12.28"]
[WhiteElo "2579"]
[BlackElo "2545"]
[PlyCount "76"]
[TimeControl "900+10"]

1. Nf3 {[%emt 0:1:17]} Nf6 {[%emt 0:0:0]} 2. c4 {[%emt 0:0:7]} g6 {[%emt 0:0:0]
} 3. g3 {[%emt 0:0:13]} Bg7 {[%emt 0:0:2]} 4. Bg2 {[%emt 0:0:0]} 0-0 {[%emt 0:0:2]} 5. 0-0 {[%emt 0:0:2]} d6 {[%emt 0:0:15]} 6. Nc3 {[%emt 0:0:7]
} Nc6 {[%emt 0:0:3]} 7. d3 {[%emt 0:0:38]} a6 {[%emt 0:0:20]} 8. Rb1 {[%emt 0:0:12]} Rb8 {[%emt 0:0:17]} 9. Nd2 {[%emt 0:0:24]} Bd7 {[%emt 0:0:1]
} 10. b4 {[%emt 0:0:9]} b5 {[%emt 0:0:3]} 11. a3 {[%emt 0:0:0]} Qc8 {[%emt 0:0:34]} 12. Bb2 {[%emt 0:0:15]} Ne5 {[%emt 0:0:19]} 13. Ba1 {[%emt 0:2:49]} Bh3 {[%emt 0:0:40]} 14. Nde4 {[%emt 0:1:52]} Bxg2 {[%emt 0:0:0]} 15. Nxf6+ {[%emt 0:0:34]} exf6 {[%emt 0:1:26]} 16. Kxg2 {[%emt 0:0:0]} c6 {[%emt 0:0:18]} 17. Ne4 {[%emt 0:1:29]} Qe6 {[%emt 0:0:2]} 18. c5 {[%emt 0:0:3]
} d5 {[%emt 0:0:14]} 19. Nd2 {[%emt 0:0:1]} h5 {[%emt 0:0:19]
} 20. h4 {[%emt 0:1:16]} Rfe8 {[%emt 0:0:12]} 21. Nb3 {[%emt 0:0:7]} f5 {[%emt 0:0:12]
} 22. Qd2 {[%emt 0:0:18]} Kh7 {[%emt 0:0:37]} 23. Bd4 {[%emt 0:0:0]} Re7 {[%emt 0:0:22]} 24. e3 {[%emt 0:0:29]} Rbe8 {[%emt 0:0:40]} 25. Ra1 {[%emt 0:0:15]} Bh6 {[%emt 0:1:17]} 26. Qd1 {[%emt 0:1:41]} Ng4 {[%emt 0:0:22]
} 27. a4 {[%emt 0:0:58]} f6 {[%emt 0:0:42]} 28. Nd2 {[%emt 0:0:0]} g5 {[%emt 0:0:13]} 29. Nf3 {[%emt 0:0:12]} f4 {[%emt 0:0:51]} 30. hxg5 {[%emt 0:0:56]} fxg5 {[%emt 0:0:11]} 31. exf4 {[%emt 0:0:3]} gxf4 {[%emt 0:0:8]
} 32. Rh1 {[%emt 0:0:20]} Qg6 {[%emt 0:1:21]} 33. Nh4 {[%emt 0:0:0]} Qf7 {[%emt 0:0:1]} 34. Nf3 {[%emt 0:0:1]} Re2 {[%emt 0:0:33]} 35. axb5 {[%emt 0:0:56]} fxg3 {[%emt 0:1:14]} 36. Rxa6 {[%emt 0:0:21]} Nxf2 {[%emt 0:0:44]
} 37. Bxf2 {[%emt 0:0:8]} Rxf2+ {[%emt 0:0:3]} 38. Kxg3 {[%emt 0:0:3]
} Ree2 {[%emt 0:0:5]} 0-1

[Event "FIDE World Rapid-ch Open 2018"]
[White "Oganian, Miran"]
[Black "Sychev, Klementy"]
[Site "St. Petersburg"]
[Round "13.69"]
[Annotator "ChessBase"]
[Result "0-1"]
[Date "2018.12.28"]
[WhiteElo "2423"]
[BlackElo "2537"]
[PlyCount "62"]
[TimeControl "900+10"]

1. d4 {[%emt 0:0:0]} e6 {[%emt 0:0:4]} 2. c4 {[%emt 0:0:0]} f5 {[%emt 0:0:0]} 3. g3 {[%emt 0:0:17]} Nf6 {[%emt 0:0:2]} 4. Bg2 {[%emt 0:0:1]} Be7 {[%emt 0:0:2]} 5. Nf3 {[%emt 0:0:35]} 0-0 {[%emt 0:0:4]} 6. 0-0 {[%emt 0:0:0]} d6 {[%emt 0:0:2]} 7. Nc3 {[%emt 0:0:8]} Ne4 {[%emt 0:0:1]} 8. Qc2 {[%emt 0:0:12]} Nxc3 {[%emt 0:0:3]} 9. Qxc3 {[%emt 0:0:2]} a5 {[%emt 0:0:0]} 10. Qc2 {[%emt 0:0:35]} Nc6 {[%emt 0:0:14]} 11. e4 {[%emt 0:0:45]} fxe4 {[%emt 0:1:25]} 12. Qxe4 {[%emt 0:0:3]} Bf6 {[%emt 0:0:4]} 13. Bh3 {[%emt 0:1:50]
} Re8 {[%emt 0:0:24]} 14. Re1 {[%emt 0:0:25]} e5 {[%emt 0:0:0]} 15. Bxc8 {[%emt 0:0:37]} Qxc8 {[%emt 0:0:2]} 16. Bg5 {[%emt 0:2:42]} Nxd4 {[%emt 0:4:15]} 17. Bxf6 {[%emt 0:0:38]} Nxf3+ {[%emt 0:0:6]} 18. Qxf3 {[%emt 0:0:1]} gxf6 {[%emt 0:0:2]} 19. Qxf6 {[%emt 0:0:21]} Qg4 {[%emt 0:0:0]} 20. h3 {[%emt 0:1:4]} Qg6 {[%emt 0:0:49]} 21. Qf3 {[%emt 0:0:53]} e4 {[%emt 0:0:4]} 22. Qb3 {[%emt 0:0:11]} Re5 {[%emt 0:6:26]} 23. Rad1 {[%emt 0:2:19]
} Rf8 {[%emt 0:0:52]} 24. c5+ {[%emt 0:4:13]} Rf7 {[%emt 0:0:0]} 25. Qxb7 {[%emt 0:0:30]} e3 {[%emt 0:0:13]} 26. Rxe3 {[%emt 0:0:12]} Rxf2 {[%emt 0:0:13]} 27. Kxf2 {[%emt 0:0:42]} Qc2+ {[%emt 0:0:2]} 28. Kf3 {[%emt 0:0:1]
} Qxd1+ 29. Kf4 Qd4+ {[%emt 0:0:18]} 30. Re4 {[%emt 0:0:9]} Qf2+ {[%emt 0:0:3]} 31. Kg4 {[%emt 0:0:11]} Qf5+ {[%emt 0:0:1]} 0-1

[Event "FIDE World Rapid-ch Open 2018"]
[White "Potapov, Pavel"]
[Black "Kabanov, Nikolai"]
[Site "St. Petersburg"]
[Round "13.70"]
[Annotator "ChessBase"]
[Result "1-0"]
[Date "2018.12.28"]
[WhiteElo "2516"]
[BlackElo "2450"]
[PlyCount "67"]
[TimeControl "900+10"]

1. e4 {[%emt 0:0:0]} e5 {[%emt 0:0:0]} 2. Nf3 {[%emt 0:0:0]} d6 {[%emt 0:0:0]} 3. d4 {[%emt 0:0:0]} exd4 {[%emt 0:0:0]} 4. Nxd4 {[%emt 0:0:2]} Nf6 {[%emt 0:0:0]} 5. Nc3 {[%emt 0:0:2]} Be7 {[%emt 0:0:0]} 6. Nde2 {[%emt 0:0:17]
} 0-0 {[%emt 0:0:13]} 7. g3 {[%emt 0:0:2]} c6 {[%emt 0:0:43]} 8. Bg2 {[%emt 0:0:3]} Re8 {[%emt 0:1:3]} 9. 0-0 {[%emt 0:0:4]} Nbd7 {[%emt 0:0:16]
} 10. h3 {[%emt 0:0:5]} Bf8 {[%emt 0:0:5]} 11. g4 {[%emt 0:0:0]} Nc5 {[%emt 0:0:25]} 12. Ng3 {[%emt 0:0:4]} a5 {[%emt 0:0:43]} 13. a4 {[%emt 0:0:17]} Qb6 {[%emt 0:0:5]} 14. g5 {[%emt 0:1:10]} Nfd7 {[%emt 0:0:0]} 15. Kh2 {[%emt 0:0:7]} g6 {[%emt 0:0:27]} 16. f4 {[%emt 0:0:4]} Qb4 {[%emt 0:0:51]} 17. Nce2 {[%emt 0:1:11]} Bg7 {[%emt 0:1:8]} 18. Qxd6 {[%emt 0:2:56]
} Nxa4 {[%emt 0:0:24]} 19. Qxb4 {[%emt 0:0:2]} axb4 {[%emt 0:0:0]} 20. e5 {[%emt 0:0:4]} Ra6 {[%emt 0:1:28]} 21. Ne4 {[%emt 0:1:29]} Bf8 {[%emt 0:0:3]} 22. Nd4 {[%emt 0:0:39]} Rd8 {[%emt 0:1:19]} 23. b3 {[%emt 0:1:38]
} Ndb6 {[%emt 0:2:16]} 24. Nf6+ {[%emt 0:1:2]} Kh8 {[%emt 0:0:0]} 25. bxa4 {[%emt 0:2:10]} Rxd4 {[%emt 0:0:2]} 26. Bb2 {[%emt 0:0:1]
} Rd2 {[%emt 0:0:1]} 27. Rad1 {[%emt 0:1:34]} Rxc2 {[%emt 0:0:10]} 28. Rd8 {[%emt 0:0:12]} Kg7 {[%emt 0:0:2]} 29. Rfd1 {[%emt 0:1:33]} Bd7 {[%emt 0:0:0]} 30. e6 {[%emt 0:0:27]} Bxe6 {[%emt 0:1:15]} 31. Be5 {[%emt 0:0:25]} Ra8 {[%emt 0:0:53]} 32. Rxa8 {[%emt 0:1:1]} Nxa8 {[%emt 0:0:3]} 33. Rd8 {[%emt 0:0:2]
} Re2 {[%emt 0:1:47]} 34. Bd6 {[%emt 0:0:15]} 1-0

[Event "FIDE World Rapid-ch Open 2018"]
[White "AL-Sayed, Mohammed"]
[Black "Reshetnikov, Alexey"]
[Site "St. Petersburg"]
[Round "13.71"]
[Annotator "ChessBase"]
[Result "1-0"]
[Date "2018.12.28"]
[WhiteElo "2484"]
[BlackElo "2492"]
[PlyCount "83"]
[TimeControl "900+10"]

1. d4 {[%emt 0:2:2]} d5 {[%emt 0:0:0]} 2. Bf4 {[%emt 0:0:7]} Nf6 {[%emt 0:0:4]
} 3. e3 {[%emt 0:0:1]} c5 {[%emt 0:0:2]} 4. c3 {[%emt 0:0:0]} Qb6 {[%emt 0:0:3]} 5. Qb3 {[%emt 0:0:7]} Nc6 {[%emt 0:0:2]} 6. Nd2 {[%emt 0:0:5]
} Bf5 {[%emt 0:1:59]} 7. dxc5 {[%emt 0:0:21]} Qxb3 {[%emt 0:0:0]} 8. axb3 {[%emt 0:0:38]} e5 {[%emt 0:0:3]} 9. Bg3 {[%emt 0:0:13]} Bxc5 {[%emt 0:0:17]} 10. Bb5 {[%emt 0:1:26]} Nd7 {[%emt 0:0:22]} 11. Ngf3 {[%emt 0:1:22]
} f6 {[%emt 0:0:6]} 12. 0-0 {[%emt 0:0:2]} 0-0 {[%emt 0:0:0]} 13. b4 {[%emt 0:0:54]} Be7 {[%emt 0:2:58]} 14. Nb3 {[%emt 0:0:45]} Rfc8 {[%emt 0:0:47]} 15. Nfd2 {[%emt 0:0:25]} a6 {[%emt 0:1:0]} 16. Be2 {[%emt 0:0:3]
} b5 {[%emt 0:3:32]} 17. f4 {[%emt 0:3:44]} e4 {[%emt 0:0:10]} 18. Rfd1 {[%emt 0:2:3]} Nb6 {[%emt 0:0:34]} 19. Nc5 {[%emt 0:0:27]} Bxc5 {[%emt 0:1:37]
} 20. bxc5 {[%emt 0:0:1]} Na4 {[%emt 0:0:2]} 21. c4 {[%emt 0:0:0]} Nxb2 {[%emt 0:0:48]} 22. cxd5 {[%emt 0:0:1]} Nxd1 {[%emt 0:0:1]} 23. Rxd1 {[%emt 0:0:1]} Nb4 {[%emt 0:0:9]} 24. Nb3 {[%emt 0:0:8]} Nxd5 {[%emt 0:0:21]
} 25. Rxd5 {[%emt 0:0:21]} Be6 {[%emt 0:0:2]} 26. Rd6 {[%emt 0:0:0]
} Bxb3 {[%emt 0:0:3]} 27. c6 {[%emt 0:0:1]} Rd8 {[%emt 0:0:0]} 28. Rxd8+ {[%emt 0:1:48]} Rxd8 {[%emt 0:0:1]} 29. Bg4 {[%emt 0:0:1]} f5 {[%emt 0:1:16]} 30. Bxf5 {[%emt 0:0:1]} Rd1+ {[%emt 0:0:5]} 31. Kf2 {[%emt 0:0:1]
} Rc1 {[%emt 0:0:15]} 32. Bxe4 {[%emt 0:0:1]} b4 {[%emt 0:0:0]} 33. f5 {[%emt 0:0:4]} Ba4 {[%emt 0:0:13]} 34. Bd5+ {[%emt 0:0:35]} Kh8 {[%emt 0:0:3]} 35. c7 {[%emt 0:0:4]} Bd7 {[%emt 0:0:9]} 36. e4 {[%emt 0:0:0]} a5 {[%emt 0:0:23]} 37. Bd6 {[%emt 0:0:1]} h6 {[%emt 0:0:10]} 38. g4 {[%emt 0:0:2]} Rc3 {[%emt 0:0:3]} 39. e5 {[%emt 0:0:4]} b3 {[%emt 0:0:0]} 40. e6 {[%emt 0:0:1]} Rc2+ {[%emt 0:0:25]} 41. Ke3 {[%emt 0:0:2]} Be8 {[%emt 0:0:9]} 42. Bxb3 {[%emt 0:0:5]} 1-0

[Event "FIDE World Rapid-ch Open 2018"]
[White "Popov, Valerij"]
[Black "Sharma, Dinesh K."]
[Site "St. Petersburg"]
[Round "13.72"]
[Annotator "ChessBase"]
[Result "1-0"]
[Date "2018.12.28"]
[WhiteElo "2532"]
[BlackElo "2295"]
[PlyCount "111"]
[TimeControl "900+10"]

1. Nf3 {[%emt 0:0:0]} d5 {[%emt 0:0:0]} 2. c4 {[%emt 0:0:0]} e6 {[%emt 0:0:0]} 3. d4 {[%emt 0:0:0]} c6 {[%emt 0:0:4]} 4. e3 {[%emt 0:0:12]} f5 {[%emt 0:0:3]
} 5. Be2 {[%emt 0:0:22]} Nf6 {[%emt 0:0:2]} 6. 0-0 {[%emt 0:0:0]} Bd6 {[%emt 0:0:2]} 7. b3 {[%emt 0:0:9]} Qe7 {[%emt 0:0:3]} 8. Bb2 {[%emt 0:0:18]} 0-0 {[%emt 0:0:4]} 9. Qc1 {[%emt 0:0:1]} b6 {[%emt 0:0:0]} 10. Ba3 {[%emt 0:0:2]} Bb7 {[%emt 0:0:7]} 11. Bxd6 {[%emt 0:0:4]} Qxd6 {[%emt 0:0:2]} 12. Qa3 {[%emt 0:0:18]} Qxa3 {[%emt 0:0:25]} 13. Nxa3 {[%emt 0:0:2]
} Nbd7 {[%emt 0:0:3]} 14. Rfc1 {[%emt 0:0:24]} Rfc8 {[%emt 0:0:0]} 15. Ng5 {[%emt 0:0:43]} Re8 {[%emt 0:0:21]} 16. Nc2 {[%emt 0:0:55]} h6 {[%emt 0:0:14]} 17. Nf3 {[%emt 0:0:4]} Rec8 {[%emt 0:2:24]} 18. h3 {[%emt 0:1:3]
} Kf7 {[%emt 0:0:9]} 19. Nb4 {[%emt 0:0:42]} Ke7 {[%emt 0:0:0]} 20. Nd3 {[%emt 0:0:25]} Ne4 {[%emt 0:3:20]} 21. Rc2 {[%emt 0:0:46]} dxc4 {[%emt 0:0:30]} 22. bxc4 {[%emt 0:0:6]} c5 {[%emt 0:0:12]} 23. g4 {[%emt 0:0:59]
} cxd4 {[%emt 0:1:24]} 24. exd4 {[%emt 0:0:8]} Nd6 {[%emt 0:0:0]} 25. Rac1 {[%emt 0:0:41]} Be4 {[%emt 0:1:49]} 26. Nd2 {[%emt 0:0:3]} Bc6 {[%emt 0:1:14]} 27. Nb4 {[%emt 0:2:8]} Ba4 {[%emt 0:1:8]} 28. Rc3 {[%emt 0:0:1]
} a5 {[%emt 0:0:11]} 29. Nd3 {[%emt 0:0:1]} Bc6 {[%emt 0:0:0]} 30. Nf4 {[%emt 0:0:41]} g5 {[%emt 0:0:16]} 31. Nxe6 {[%emt 0:1:8]} Kxe6 {[%emt 0:0:7]} 32. d5+ {[%emt 0:0:0]} Bxd5 {[%emt 0:1:42]} 33. cxd5+ {[%emt 0:0:1]} Kf7 {[%emt 0:1:8]} 34. Rc7 {[%emt 0:0:7]} Ke7 {[%emt 0:0:0]} 35. gxf5 {[%emt 0:0:4]} Rxc7 {[%emt 0:0:13]} 36. Rxc7 {[%emt 0:0:1]} Kd8 {[%emt 0:0:7]} 37. Rc6 {[%emt 0:0:7]} Nxf5 {[%emt 0:0:2]} 38. Bg4 {[%emt 0:0:15]
} Ng7 {[%emt 0:0:45]} 39. Rxh6 {[%emt 0:0:9]} Nf8 {[%emt 0:0:0]} 40. Rxb6 {[%emt 0:0:6]} Ne8 {[%emt 0:0:4]} 41. Ne4 {[%emt 0:0:4]} Nd7 {[%emt 0:0:2]} 42. Bxd7 {[%emt 0:0:31]} Kxd7 {[%emt 0:0:2]} 43. Rb7+ {[%emt 0:0:1]
} Kd8 {[%emt 0:0:7]} 44. Nxg5 {[%emt 0:0:5]} Ra6 {[%emt 0:0:0]} 45. a4 {[%emt 0:0:41]} Kc8 {[%emt 0:0:20]} 46. Rb5 {[%emt 0:0:21]} Nc7 {[%emt 0:0:20]} 47. Rc5 {[%emt 0:0:4]} Kd7 {[%emt 0:0:2]} 48. Kg2 {[%emt 0:0:17]
} Ra8 {[%emt 0:0:6]} 49. h4 {[%emt 0:0:12]} Kd6 {[%emt 0:0:0]} 50. Ne4+ {[%emt 0:0:1]} Kd7 {[%emt 0:0:4]} 51. Nf6+ {[%emt 0:0:5]} Kd8 {[%emt 0:0:4]} 52. d6 {[%emt 0:0:7]} Ne6 {[%emt 0:0:9]} 53. Re5 {[%emt 0:0:10]
} Ng7 {[%emt 0:0:1]} 54. Re7 {[%emt 0:0:8]} Ra6 {[%emt 0:0:0]} 55. Rxg7 {[%emt 0:0:2]} Rxd6 {[%emt 0:0:1]} 56. Rd7+ {[%emt 0:0:5]} 1-0

[Event "FIDE World Rapid-ch Open 2018"]
[White "Khismatullin, Denis"]
[Black "Makoveev, Ilya"]
[Site "St. Petersburg"]
[Round "13.73"]
[Annotator "ChessBase"]
[Result "1-0"]
[Date "2018.12.28"]
[WhiteElo "2621"]
[BlackElo "2257"]
[PlyCount "35"]
[TimeControl "900+10"]

1. c4 {[%emt 0:0:31]} e5 {[%emt 0:0:0]} 2. Nc3 {[%emt 0:0:2]} Nf6 {[%emt 0:0:0]
} 3. Nf3 {[%emt 0:0:2]} Nc6 {[%emt 0:0:0]} 4. e3 {[%emt 0:0:0]} Be7 {[%emt 0:2:2]} 5. a3 {[%emt 0:0:52]} 0-0 {[%emt 0:2:52]} 6. b4 {[%emt 0:0:1]
} d5 {[%emt 0:1:47]} 7. cxd5 {[%emt 0:0:33]} Nxd5 {[%emt 0:0:0]} 8. Qc2 {[%emt 0:0:2]} Nxc3 {[%emt 0:2:1]} 9. dxc3 {[%emt 0:0:2]} Be6 {[%emt 0:0:12]} 10. Bd3 {[%emt 0:0:22]} f5 {[%emt 0:2:14]} 11. e4 {[%emt 0:0:0]} g6 {[%emt 0:0:20]} 12. Bh6 {[%emt 0:0:34]} Rf6 {[%emt 0:3:44]} 13. h4 {[%emt 0:0:22]} fxe4 {[%emt 0:1:4]} 14. Bxe4 {[%emt 0:0:4]} Bf5 {[%emt 0:0:2]
} 15. h5 {[%emt 0:2:11]} Qe8 {[%emt 0:0:24]} 16. Ng5 {[%emt 0:0:0]} Bf8 {[%emt 0:0:40]} 17. Qa2+ {[%emt 0:4:7]} Kh8 {[%emt 0:0:11]} 18. Nxh7 {[%emt 0:0:28]} 1-0

[Event "FIDE World Rapid-ch Open 2018"]
[White "Salgado Lopez, Ivan"]
[Black "Makarov, Marat"]
[Site "St. Petersburg"]
[Round "13.74"]
[Annotator "ChessBase"]
[Result "1-0"]
[Date "2018.12.28"]
[WhiteElo "2629"]
[BlackElo "2505"]
[PlyCount "85"]
[TimeControl "900+10"]

1. e4 {[%emt 0:0:0]} c5 {[%emt 0:0:0]} 2. Nf3 {[%emt 0:0:0]} d6 {[%emt 0:0:0]} 3. d4 {[%emt 0:0:7]} cxd4 {[%emt 0:0:0]} 4. Nxd4 {[%emt 0:0:7]} Nf6 {[%emt 0:0:1]} 5. Nc3 {[%emt 0:0:6]} a6 {[%emt 0:0:1]} 6. g3 {[%emt 0:0:13]
} e5 {[%emt 0:0:6]} 7. Nde2 {[%emt 0:0:5]} Be7 {[%emt 0:0:0]} 8. Bg2 {[%emt 0:0:6]} Nbd7 {[%emt 0:0:23]} 9. a4 {[%emt 0:0:33]} 0-0 {[%emt 0:0:14]
} 10. h3 {[%emt 0:1:2]} Nb6 {[%emt 0:0:15]} 11. b3 {[%emt 0:0:0]} Be6 {[%emt 0:0:3]} 12. a5 {[%emt 0:0:29]} Nbd7 {[%emt 0:0:32]} 13. 0-0 {[%emt 0:0:53]} Nb8 {[%emt 0:2:53]} 14. Nd5 {[%emt 0:0:48]} Nc6 {[%emt 0:0:49]
} 15. Nxe7+ {[%emt 0:0:14]} Qxe7 {[%emt 0:0:1]} 16. Be3 {[%emt 0:0:41]
} Qd7 {[%emt 0:2:26]} 17. g4 {[%emt 0:0:19]} d5 {[%emt 0:0:13]
} 18. exd5 {[%emt 0:0:8]} Nxd5 {[%emt 0:0:18]} 19. Bc5 {[%emt 0:0:14]} Rfd8 {[%emt 0:0:54]} 20. c4 {[%emt 0:0:7]} Ndb4 {[%emt 0:0:11]} 21. Bb6 {[%emt 0:0:14]
} Qe7 {[%emt 0:1:17]} 22. Qb1 {[%emt 0:0:43]} h5 {[%emt 0:0:0]} 23. Bxd8 {[%emt 0:1:33]} Rxd8 {[%emt 0:0:3]} 24. Qe4 {[%emt 0:0:3]} hxg4 {[%emt 0:0:36]} 25. hxg4 {[%emt 0:0:3]} Rd3 {[%emt 0:1:3]} 26. Rfd1 {[%emt 0:1:25]
} Rxb3 {[%emt 0:0:33]} 27. Rab1 {[%emt 0:0:6]} Rxb1 {[%emt 0:0:0]} 28. Rxb1 {[%emt 0:0:8]} Qc5 {[%emt 0:0:24]} 29. Ng3 {[%emt 0:1:10]} Qxa5 {[%emt 0:0:30]} 30. Qe3 {[%emt 0:0:52]} Qa2 {[%emt 0:1:30]} 31. Be4 {[%emt 0:0:44]
} Nc2 {[%emt 0:1:25]} 32. Qc1 {[%emt 0:0:31]} N2d4 {[%emt 0:0:0]} 33. Rxb7 {[%emt 0:0:17]} g6 {[%emt 0:1:47]} 34. Rb6 {[%emt 0:1:17]} Qa5 {[%emt 0:0:20]} 35. c5 {[%emt 0:0:31]} Kg7 {[%emt 0:0:6]} 36. Bxc6 {[%emt 0:0:18]
} Nb3 {[%emt 0:0:15]} 37. Rxb3 {[%emt 0:1:34]} Bxb3 {[%emt 0:0:0]} 38. Bf3 {[%emt 0:0:19]} Be6 {[%emt 0:0:16]} 39. c6 {[%emt 0:0:23]} Qc7 {[%emt 0:0:0]} 40. g5 {[%emt 0:0:30]} a5 {[%emt 0:0:4]} 41. Qc2 {[%emt 0:0:18]
} Qe7 {[%emt 0:0:28]} 42. Ne4 {[%emt 0:0:24]} Bf5 {[%emt 0:0:0]} 43. c7 {[%emt 0:0:6]} 1-0

[Event "FIDE World Rapid-ch Open 2018"]
[White "Iljiushenok, Ilia"]
[Black "Maghsoodloo, Parham"]
[Site "St. Petersburg"]
[Round "13.75"]
[Annotator "ChessBase"]
[Result "0-1"]
[Date "2018.12.28"]
[WhiteElo "2533"]
[BlackElo "2688"]
[PlyCount "82"]
[TimeControl "900+10"]

1. e4 {[%emt 0:0:0]} Nf6 {[%emt 0:0:0]} 2. e5 {[%emt 0:0:0]} Nd5 {[%emt 0:0:0]
} 3. d4 {[%emt 0:0:0]} d6 {[%emt 0:0:0]} 4. Nf3 {[%emt 0:0:0]} Bg4 {[%emt 0:0:0]} 5. h3 {[%emt 0:0:0]} Bh5 {[%emt 0:0:0]} 6. g4 {[%emt 0:0:2]
} Bg6 {[%emt 0:0:0]} 7. e6 {[%emt 0:0:1]} fxe6 {[%emt 0:0:0]} 8. Bg2 {[%emt 0:0:2]} c6 {[%emt 0:0:25]} 9. 0-0 {[%emt 0:0:18]} h6 {[%emt 0:0:23]
} 10. c4 {[%emt 0:0:7]} Nc7 {[%emt 0:0:3]} 11. Nc3 {[%emt 0:0:0]} Nd7 {[%emt 0:0:3]} 12. Re1 {[%emt 0:0:50]} Bf7 {[%emt 0:0:2]} 13. Qb3 {[%emt 0:2:17]} Rb8 {[%emt 0:0:10]} 14. Be3 {[%emt 0:0:52]} a6 {[%emt 0:0:0]} 15. Qc2 {[%emt 0:2:16]} g5 {[%emt 0:0:28]} 16. Rad1 {[%emt 0:1:31]} Bg7 {[%emt 0:0:2]} 17. Ne4 {[%emt 0:0:12]} Nf6 {[%emt 0:0:21]} 18. Ng3 {[%emt 0:0:11]
} 0-0 {[%emt 0:0:23]} 19. b3 {[%emt 0:2:53]} Qe8 {[%emt 0:0:0]} 20. Qd2 {[%emt 0:0:1]} Bg6 {[%emt 0:0:7]} 21. Nh2 {[%emt 0:0:11]} Qf7 {[%emt 0:0:53]} 22. Rf1 {[%emt 0:0:19]} e5 {[%emt 0:0:2]} 23. dxe5 {[%emt 0:0:13]
} dxe5 {[%emt 0:0:1]} 24. Nf3 {[%emt 0:0:10]} Nfe8 {[%emt 0:0:0]} 25. Qa5 {[%emt 0:1:10]} Qf6 {[%emt 0:0:53]} 26. Nd2 {[%emt 0:2:52]} Ne6 {[%emt 0:0:2]} 27. Nde4 {[%emt 0:0:3]} Qf7 {[%emt 0:0:2]} 28. Kh2 {[%emt 0:1:6]
} Nd4 {[%emt 0:0:26]} 29. Kh1 {[%emt 0:0:54]} Nd6 {[%emt 0:0:0]} 30. Nc3 {[%emt 0:0:50]} Kh8 {[%emt 0:0:31]} 31. c5 {[%emt 0:0:1]} Ne8 {[%emt 0:0:13]} 32. Qb6 {[%emt 0:0:28]} Nf6 {[%emt 0:0:12]} 33. Qc7 {[%emt 0:0:20]
} Ne6 {[%emt 0:0:43]} 34. Qb6 {[%emt 0:0:6]} Nf4 {[%emt 0:0:0]} 35. Bxf4 {[%emt 0:0:14]} exf4 {[%emt 0:0:21]} 36. Nf5 {[%emt 0:0:1]} Bxf5 {[%emt 0:0:18]} 37. gxf5 {[%emt 0:0:1]} g4 {[%emt 0:0:1]} 38. Qb4 {[%emt 0:0:6]
} f3 {[%emt 0:0:8]} 39. hxg4 {[%emt 0:0:10]} fxg2+ {[%emt 0:0:0]} 40. Kxg2 {[%emt 0:0:1]} Nxg4 {[%emt 0:0:2]} 41. Qxg4 {[%emt 0:0:0]} Rg8 {[%emt 0:0:9]} 0-1